Workbook

Sheet Лист1
A1: Школа | F1: Утвердил: | G1: должность
A2: Типовое примерное меню приготавливаемых блюд | G2: фамилия
A3: Возрастная категория | G3: дата
A5: Неделя | B5: День недели | C5: Прием пищи | D5: Раздел меню | E5: Блюда | F5: Вес блюда, г | G5: Белки | H5: Жиры | I5: Углеводы | J5: Калорийность | K5: № рецептуры | L5: Цена
A6: 1 | B6: 1 | C6: Завтрак | D6: гор.блюдо | E6: Каша вязкая молочная пшенная с изюмом | F6: 250 | G6: 8 | H6: 10 | I6: 42 | J6: 217.8 | K6: 54-27к | L6: 27.16
D8: гор.напиток | E8: Какао с молоком | F8: 200 | G8: 5 | H8: 4 | I8: 13 | J8: 100.4 | K8: 54-21гн | L8: 20.45
D9: хлеб | E9: Хлеб пшеничный,сыр твердых сортов в нарезке | F9: 45 | G9: 6 | H9: 5 | I9: 15 | J9: 124 | K9: 54-1з-Пром. | L9: 14.16
D10: фрукты | E10: Яблоко | F10: 200 | G10: 1 | H10: 1 | I10: 20 | J10: 88.8 | K10: Пром. | L10: 34
D13: итого | F13: =SUM(F6:F12) -> 695 | G13: =SUM(G6:G12) -> 19.31 | H13: 18.65 | I13: 88.55 | J13: 531 | L13: 95.77
A14: =A6 -> 1 | B14: =B6 -> 1 | C14: Обед | D14: закуска | E14: Салат из свеклы отварной | F14: 100 | G14: 1 | H14: 4 | I14: 8 | J14: 76.1 | K14: 54-13з | L14: 8.54
D15: 1 блюдо | E15: Рассольник ленинградский | F15: 250 | G15: 6 | H15: 7 | I15: 17 | J15: 157 | K15: 54-3с | L15: 19.54
D16: 2 блюдо | E16: Плов из отварной говядины | F16: 200 | G16: 15 | H16: 15 | I16: 39 | J16: 348.3 | K16: 54-11м | L16: 69.76
D17: гарнир
D18: напиток | E18: Чай с сахаром | F18: 200 | G18: 0 | H18: 0 | I18: 6 | J18: 26.8 | K18: 54-2гн | L18: 1.8
D19: хлеб бел. | E19: Хлеб пшеничный | F19: 60 | G19: 5 | H19: 1 | I19: 30 | J19: 140.6 | K19: Пром | L19: 4.32
D20: хлеб черн. | E20: Хлеб ржаной | F20: 45 | G20: 3 | H20: 1 | I20: 15 | J20: 76.9 | K20: Пром | L20: 3.24
D23: итого | F23: =SUM(F14:F22) -> 855 | G23: =SUM(G14:G22) -> 30.36 | H23: 27.46 | I23: 114.16 | J23: 825.7 | L23: 107.2
A24: =A6 -> 1 | B24: =B6 -> 1 | C24: Итого за день: | F24: =F13+F23 -> 1550 | G24: =G13+G23 -> 49.67 | H24: 46.11 | I24: 202.71 | J24: 1356.7 | L24: 202.97
A25: 1 | B25: 2 | C25: Завтрак | D25: гор.блюдо | E25: Котлета из курицы | F25: 100 | G25: 19.09 | H25: 4.32 | I25: 13.37 | J25: 168.7 | K25: 54-5м | L25: 52.46
E26: Макароны отварные,соус красный основной | F26: 200 | G26: 7.04 | H26: 6.39 | I26: 41.1 | J26: 250.2 | K26: 54-1г-3соус | L26: 20.07
D27: гор.напиток | E27: Чай с лимоном | F27: 200 | G27: 0.3 | H27: 0 | I27: 6.7 | J27: 27.9 | K27: 54-3н | L27: 3.1
D28: хлеб | E28: Хлеб пшеничный с маслом сливочным | F28: 55 | G28: 3.48 | H28: 7.65 | I28: 22.23 | J28: 171.6 | K28: 54-19з-Пром. | L28: 15.24
D32: итого | F32: =SUM(F25:F31) -> 555 | G32: =SUM(G25:G31) -> 29.91 | H32: 18.36 | I32: 83.4 | J32: 618.4 | L32: 90.87
A33: =A25 -> 1 | B33: =B25 -> 2 | C33: Обед | D33: закуска | E33: Салат из моркови с яблоками | F33: 100 | G33: 0.91 | H33: 10.17 | I33: 7.15 | J33: 123.8 | K33: 54-34з | L33: 10.94
D34: 1 блюдо | E34: Свекольник со сметаной | F34: 250 | G34: 2.26 | H34: 5.32 | I34: 13.37 | J34: 110.4 | K34: 54-18с | L34: 16.63
D35: 2 блюдо | E35: Жаркое по-домашнему | F35: 200 | G35: 20.06 | H35: 18.76 | I35: 17.22 | J35: 318 | K35: 54-9м | L35: 114.12
D36: гарнир
D37: напиток | E37: Компот из смеси сухофруктов | F37: 200 | G37: 0.38 | H37: 0 | I37: 19.82 | J37: 80.8 | K37: 54-1хн | L37: 5.86
D38: хлеб бел. | E38: Сок для детского питания (персиковый) | F38: 200 | G38: 0.6 | H38: 0 | I38: 33 | J38: 35 | K38: Пром | L38: 4.32
D39: хлеб черн. | E39: Хлеб пшеничный | F39: 45 | G39: 3.4 | H39: 0.4 | I39: 22.1 | J39: 105.5 | K39: Пром | L39: 1.80
D40: сладкое | E40: Хлеб ржаной | F40: 25 | G40: 1.65 | H40: 0.3 | I40: 8.35 | J40: 42.7 | K40: Пром | L40: 35
D42: итого | F42: =SUM(F33:F41) -> 1020 | G42: =SUM(G33:G41) -> 29.26 | H42: 34.95 | I42: 121.01 | J42: 816.2 | L42: 188.67
A43: =A25 -> 1 | B43: =B25 -> 2 | C43: Итого за день: | F43: =F32+F42 -> 1575 | G43: =G32+G42 -> 59.17 | H43: 53.31 | I43: 204.41 | J43: 1434.6 | L43: 279.54
A44: 1 | B44: 3 | C44: Завтрак | D44: гор.блюдо | E44: Суп гороховый с картофелем и куриным мясом | F44: 250 | G44: 7.63 | H44: 2.82 | I44: 19.2 | J44: 132.8 | K44: 54-6а | L44: 16.72
D46: гор.напиток | E46: Напиток витаминизированный "Витоша" | F46: 200 | G46: 0 | H46: 0 | I46: 19.4 | J46: 77.6 | K46: 27,01,24 | L46: 8.5
D47: хлеб | E47: Хлеб пшеничный с маслом сливочным(порциями),хлеб ржаной с сыром твердых сортов в нарезке | F47: 110 | G47: 9.79 | H47: 12.43 | I47: 38 | J47: 303.1 | K47: 54-1з-19з-Пром | L47: 29.04
D48: сладкое | E48: Кисломолочный продукт для детского питания (йогурт) | F48: 100 | G48: 3.2 | H48: 3.2 | I48: 4.5 | J48: 62 | K48: ТК № 476,01 | L48: 45
D51: итого | F51: =SUM(F44:F50) -> 660 | G51: =SUM(G44:G50) -> 20.62 | H51: 18.45 | I51: 81.1 | J51: 575.5 | L51: =SUM(L44:L50) -> 99.26
A52: =A44 -> 1 | B52: =B44 -> 3 | C52: Обед | D52: закуска | E52: Винегрет с растительным маслом | F52: 100 | G52: 1.17 | H52: 8.95 | I52: 6.67 | J52: 111.9 | K52: 54-16з | L52: 14.1
D53: 1 блюдо | E53: Суп крестьянский с крупой ( крупа рисовая) | F53: 250 | G53: 6.19 | H53: 7.23 | I53: 14.11 | J53: 146.2 | K53: 54-11с | L53: 13.38
D54: 2 блюдо | E54: Котлета из говядины | F54: 100 | G54: 18.25 | H54: 17.4 | I54: 16.43 | J54: 295.2 | K54: 54-4м | L54: 93.82
D55: гарнир | E55: Каша пшенная рассыпчатая,соус основной красный | F55: 200 | G55: 8.32 | H55: 8.26 | I55: 44.37 | J55: 285.2 | K55: 54-12к-3соус | L55: 17.72
D56: напиток | E56: Чай с лимоном | F56: 200 | G56: 0.3 | H56: 0 | I56: 6.7 | J56: 27.9 | K56: 54-3гн | L56: 3.2
D57: хлеб бел. | E57: Хлеб пшеничный | F57: 45 | G57: 3.4 | H57: 0.4 | I57: 22.1 | J57: 105.5 | K57: Пром | L57: 3.24
D58: хлеб черн. | E58: Хлеб ржаной | F58: 25 | G58: 1.65 | H58: 0.3 | I58: 8.35 | J58: 42.7 | K58: Пром | L58: 1.8
D61: итого | F61: =SUM(F52:F60) -> 920 | G61: =SUM(G52:G60) -> 39.28 | H61: 42.54 | I61: 118.73 | J61: 1014.6 | L61: 147.26
A62: =A44 -> 1 | B62: =B44 -> 3 | C62: Итого за день: | F62: =F51+F61 -> 1580 | G62: =G51+G61 -> 59.9 | H62: 60.99 | I62: 199.83 | J62: 1590.1 | L62: 246.52
A63: 1 | B63: 4 | C63: Завтрак | D63: гор.блюдо | E63: Рыба припущенная в томате с овощами (Горбуша) | F63: 100 | G63: 16.1 | H63: 11.3 | I63: 6.3 | J63: 191.9 | K63: 54-10р | L63: 81.4
E64: Каша гречневая рассыпчатая | F64: 180 | G64: 9.87 | H64: 7.61 | I64: 43.12 | J64: 280.5 | K64: 54-4г | L64: 17.07
D65: гор.напиток | E65: Компот из свежих яблок | F65: 200 | G65: 0.16 | H65: 0.16 | I65: 27.88 | J65: 114.6 | K65: 54,32нг | L65: 8.31
D66: хлеб | E66: Хлеб пшеничный, хлеб ржаной | F66: 75 | G66: 5.4 | H66: 0.8 | I66: 32.1 | J66: 156.7 | K66: Пром. | L66: 5.4
D70: итого | F70: =SUM(F63:F69) -> 555 | G70: =SUM(G63:G69) -> 31.53 | H70: 19.87 | I70: 109.4 | J70: 743.7 | L70: =SUM(L63:L69) -> 112.18
A71: =A63 -> 1 | B71: =B63 -> 4 | C71: Обед | D71: закуска | E71: Салат из белокачанной капусты с морковью и яблоками | F71: 100 | G71: 1.37 | H71: 10.15 | I71: 6.03 | J71: 120.9 | K71: 54-9з | L71: 11.75
D72: 1 блюдо | E72: Уха ростовская | F72: 250 | G72: 7.77 | H72: 3.9 | I72: 12.43 | J72: 116.1 | K72: 54-32с | L72: 34.95
D73: 2 блюдо | E73: Фрикадельки из говядины | F73: 100 | G73: 13.68 | H73: 12.16 | I73: 6.76 | J73: 191.2 | K73: 54-16м | L73: 93.46
D74: гарнир | E74: Рис припущенный с томатом | F74: 180 | G74: 4.52 | H74: 5.3 | I74: 43.58 | J74: 240.1 | K74: 54-11г | L74: 12.71
D75: напиток | E75: Кисель из апельсинов | F75: 200 | G75: 0.43 | H75: 0.09 | I75: 14.32 | J75: 59.7 | K75: 54-20хн | L75: 21.64
D76: хлеб бел. | E76: Хлеб пшеничный | F76: 45 | G76: 3.4 | H76: 0.4 | I76: 22.1 | J76: 105.5 | K76: Пром | L76: 3.24
D77: хлеб черн. | E77: Хлеб ржаной | F77: 30 | G77: 2 | H77: 0.4 | I77: 10 | J77: 51.2 | K77: Пром | L77: 1.8
D80: итого | F80: =SUM(F71:F79) -> 905 | G80: =SUM(G71:G79) -> 33.17 | H80: 32.4 | I80: 115.22 | J80: 884.7 | L80: 179.55
A81: =A63 -> 1 | B81: =B63 -> 4 | C81: Итого за день: | F81: =F70+F80 -> 1460 | G81: =G70+G80 -> 64.7 | H81: 52.27 | I81: 224.62 | J81: 1628.4 | L81: 291.73
A82: 1 | B82: 5 | C82: Завтрак | D82: гор.блюдо | E82: Омлет натуральный | F82: 200 | G82: 16.91 | H82: 23.97 | I82: 4.32 | J82: 300.7 | K82: 54-1о | L82: 65.05
D84: гор.напиток | E84: Напиток апельсиновый | F84: 200 | G84: 0.19 | H84: 0.04 | I84: 7.98 | J84: 33 | K84: 54-33хн | L84: 8.92
D85: хлеб | E85: Хлеб пшеничный,хлеб ржаной | F85: 85 | G85: 6.25 | H85: 0.8 | I85: 37.85 | J85: 183.3 | K85: Пром | L85: 6.12
D86: сладкое | E86: Сок для детского питания (персиковый) | F86: 200 | G86: 0.6 | H86: 0 | I86: 33 | J86: 35 | K86: Пром | L86: 35
D87: закуска
D89: итого | F89: =SUM(F82:F88) -> 685 | G89: =SUM(G82:G88) -> 23.95 | H89: 24.81 | I89: 83.15 | J89: 552 | L89: =SUM(L82:L88) -> 115.09
A90: =A82 -> 1 | B90: =B82 -> 5 | C90: Обед | D90: закуска | E90: Салат с картофелем с морковью и зеным горошком | F90: 100 | G90: 2.8 | H90: 7.15 | I90: 10.42 | J90: 117.1 | K90: 54-34з | L90: 16.24
D91: 1 блюдо | E91: Щи из свежей капусты | F91: 250 | G91: 5.8 | H91: 7.05 | I91: 7.1 | J91: 115 | K91: 53 | L91: 11.2
D92: 2 блюдо | E92: Гуляш из говядины | F92: 100 | G92: 16.99 | H92: 16.51 | I92: 3.9 | J92: 232.2 | K92: 54-2м | L92: 95.23
D93: гарнир | E93: Макароные отварные | F93: 180 | G93: 6.39 | H93: 5.91 | I93: 39.36 | J93: 236.2 | K93: 54-1г | L93: 18.14
D94: напиток | E94: Чай с сахаром | F94: 200 | G94: 0.2 | H94: 0 | I94: 6.4 | J94: 26.8 | K94: 54-2гн | L94: 1.8
D95: хлеб бел. | E95: Хлеб пшеничный | F95: 60 | G95: 4.56 | H95: 0.48 | I95: 29.52 | J95: 140.6 | K95: Пром | L95: 4.32
D96: хлеб черн. | E96: Хлеб ржаный | F96: 45 | G96: 3.4 | H96: 0.4 | I96: 22.1 | J96: 105.5 | K96: Пром | L96: 3.24
D97: булочное
D99: итого | F99: =SUM(F90:F98) -> 935 | G99: =SUM(G90:G98) -> 40.14 | H99: 37.5 | I99: 118.8 | J99: 973.4 | L99: 150.17
A100: =A82 -> 1 | B100: =B82 -> 5 | C100: Итого за день: | F100: =F89+F99 -> 1620 | G100: =G89+G99 -> 64.09 | H100: 62.31 | I100: 201.95 | J100: 1525.4 | L100: =L89+L99 -> 265.26
A101: 2 | B101: 1 | C101: Завтрак | D101: гор.блюдо | E101: Каша вязкая молочная ячневая | F101: 250 | G101: 9.06 | H101: 11.63 | I101: 42.6 | J101: 311.2 | K101: 54-21к | L101: 24.6
D103: гор.напиток | E103: Кофейный напиток с молоком | F103: 200 | G103: 3.87 | H103: 2.86 | I103: 11.19 | J103: 86 | K103: 54-23гн | L103: 13.1
D104: хлеб | E104: Хлеб пшеничный,хлеб ржаной с маслом сливочным | F104: 100 | G104: 6.62 | H104: 8.09 | I104: 39.67 | J104: 257.9 | K104: 54-19з-Пром. | L104: 6.48
D108: итого | F108: =SUM(F101:F107) -> 550 | G108: =SUM(G101:G107) -> 19.55 | H108: 22.58 | I108: 93.46 | J108: 655.1 | L108: 44.18
A109: =A101 -> 2 | B109: =B101 -> 1 | C109: Обед | D109: закуска | E109: Икра морковная | F109: 100 | G109: 2.12 | H109: 7.13 | I109: 10.14 | J109: 113.1 | K109: 54-12з | L109: 18.43
D110: 1 блюдо | E110: Суп гороховый | F110: 250 | G110: 8.12 | H110: 3.47 | I110: 18.42 | J110: 137.4 | K110: 54-8с | L110: 10.13
D111: 2 блюдо | E111: Рагу из курицы | F111: 200 | G111: 20.85 | H111: 7.03 | I111: 17.31 | J111: 216.1 | K111: 54-27м | L111: 67.47
D112: гарнир
D113: напиток | E113: Чай с сахаром | F113: 200 | G113: 0.2 | H113: 0 | I113: 6.4 | J113: 26.8 | K113: 54-2гн | L113: 1.8
D114: хлеб бел. | E114: Хлеб пшеничный | F114: 60 | G114: 4.56 | H114: 0.48 | I114: 29.52 | J114: 140.6 | K114: Пром | L114: 4.32
D115: хлеб черн. | E115: Хлеб ржаной | F115: 45 | G115: 3.4 | H115: 0.4 | I115: 22.1 | J115: 105.5 | K115: Пром | L115: 3.24
D116: фрукты | E116: Апельсин | F116: 200 | G116: 1.8 | H116: 0.4 | I116: 16.2 | J116: 75.6 | K116: Пром. | L116: 52
D118: итого | F118: =SUM(F109:F117) -> 1055 | G118: =SUM(G109:G117) -> 41.05 | H118: 18.91 | I118: 120.09 | J118: 815.1 | L118: 157.39
A119: =A101 -> 2 | B119: =B101 -> 1 | C119: Итого за день: | F119: =F108+F118 -> 1605 | G119: =G108+G118 -> 60.6 | H119: 41.49 | I119: 213.55 | J119: 1470.2 | L119: 201.57
A120: 2 | B120: 2 | C120: Завтрак | D120: гор.блюдо | E120: Суп из овощей с фрикадельками мясными | F120: 250 | G120: 10.75 | H120: 7.56 | I120: 17.17 | J120: 179.8 | K120: 54-34с | L120: 39.8
D122: гор.напиток | E122: Кисель витаминизированный "Витоша" | F122: 200 | G122: 0 | H122: 0 | I122: 23.5 | J122: 95 | K122: ТК № 305,11 | L122: 11.3
D123: хлеб | E123: Хлеб пшеничный с маслом сливочным (порциями),сыр твердых сортов в нарезке | F123: 85 | G123: 8.14 | H123: 12.13 | I123: 29.65 | J123: 260.4 | K123: 54-1з-19з-Пром. | L123: 27.24
D124: фрукты | E124: Яблоко | F124: 200 | G124: 0.8 | H124: 0.8 | I124: 19.6 | J124: 88.8 | K124: Пром | L124: 34
D125: булочное
D127: итого | F127: =SUM(F120:F126) -> 735 | G127: =SUM(G120:G126) -> 19.69 | H127: 20.49 | I127: 89.92 | J127: 624 | L127: 112.34
A128: =A120 -> 2 | B128: =B120 -> 2 | C128: Обед | D128: закуска | E128: Икра свекольная | F128: 100 | G128: 2.26 | H128: 7.13 | I128: 11.44 | J128: 118.8 | K128: 54-15з | L128: 18.37
D129: 1 блюдо | E129: Суп картофельный с крупой (перловка) | F129: 250 | G129: 6.4 | H129: 7.24 | I129: 13.47 | J129: 144.5 | K129: 54-11с | L129: 12.53
D130: 2 блюдо | E130: Котлета из курицы | F130: 100 | G130: 19.09 | H130: 4.32 | I130: 13.37 | J130: 168.7 | K130: 54-5м | L130: 49.49
D131: гарнир | E131: Каша гречневая с овощами | F131: 180 | G131: 8.75 | H131: 8.34 | I131: 39.43 | J131: 267.9 | K131: ДП-6г | L131: 12.92
D132: напиток | E132: Напиток апельсиновый | F132: 200 | G132: 0.19 | H132: 0.04 | I132: 7.98 | J132: 33 | K132: 54-33хн | L132: 8.92
D133: хлеб бел. | E133: Хлеб пшеничный | F133: 45 | G133: 3.4 | H133: 0.4 | I133: 22.1 | J133: 105.5 | K133: Пром | L133: 3.24
D134: хлеб черн. | E134: Хлеб ржаной | F134: 25 | G134: 1.65 | H134: 0.3 | I134: 8.35 | J134: 42.7 | K134: Пром | L134: 1.8
D137: итого | F137: =SUM(F128:F136) -> 900 | G137: =SUM(G128:G136) -> 41.74 | H137: 27.77 | I137: 116.14 | J137: 881.1 | L137: 107.27
A138: =A120 -> 2 | B138: =B120 -> 2 | C138: Итого за день: | F138: =F127+F137 -> 1635 | G138: =G127+G137 -> 61.43 | H138: 48.26 | I138: 206.06 | J138: 1505.1 | L138: 219.61
A139: 2 | B139: 3 | C139: Завтрак | D139: гор.блюдо | E139: Плов из курицы | F139: 200 | G139: 27.23 | H139: 8.09 | I139: 33.22 | J139: 314.6 | K139: 54-12м | L139: 78.05
D141: гор.напиток | E141: Компот из сухофруктов | F141: 200 | G141: 0.38 | H141: 0 | I141: 19.82 | J141: 80.8 | K141: 54-1хн | L141: 5.86
D142: хлеб | E142: Хлеб пшеничный, сыр твердых сортов в нарезке, масло сливочное (проциями) | F142: 70 | G142: 6.98 | H142: 12.05 | I142: 22.23 | J142: 225.3 | K142: Пром | L142: 27.24
D143: фрукты | E143: Кисломолочный продукт для детского питания (йогурт) | F143: 100 | G143: 3.2 | H143: 3.2 | I143: 4.5 | J143: 62 | K143: Пром. | L143: 45
D146: итого | F146: =SUM(F139:F145) -> 570 | G146: =SUM(G139:G145) -> 37.79 | H146: 23.34 | I146: 79.77 | J146: 682.7 | L146: 156.15
A147: =A139 -> 2 | B147: =B139 -> 3 | C147: Обед | D147: закуска | E147: Салат из моркови с яблоками | F147: 100 | G147: 0.91 | H147: 10.17 | I147: 7.15 | J147: 123.8 | K147: 54-11з | L147: 12.32
D148: 1 блюдо | E148: Борщ с капустой и картофелем со сметаной | F148: 250 | G148: 5.89 | H148: 7.09 | I148: 12.68 | J148: 137.9 | K148: 54-2с | L148: 17.49
D149: 2 блюдо | E149: Тефтели из говядины с рисом | F149: 120 | G149: 20.1 | H149: 18.7 | I149: 17.2 | J149: 318 | K149: 54-16м | L149: 53.4
D150: гарнир | E150: Каша перловая рассыпчатая, соус красный основной | F150: 220 | K150: 54-5г-3соус | L150: 17.33
D151: напиток | E151: Чай витаминизированный | F151: 200 | G151: 0 | H151: 0 | I151: 10 | J151: 39 | K151: ТК №282,11 | L151: 5.45
D152: хлеб бел. | E152: Хлеб пшеничный | F152: 60 | G152: 4.6 | H152: 0.5 | I152: 29.5 | J152: 140.6 | K152: Пром | L152: 4.32
D153: хлеб черн. | E153: Хлеб ржаной | F153: 30 | G153: 3.4 | H153: 0.4 | I153: 22.1 | J153: 105.5 | K153: Пром | L153: 2.16
D156: итого | F156: =SUM(F147:F155) -> 980 | G156: =SUM(G147:G155) -> 34.9 | H156: 36.86 | I156: 98.63 | J156: 864.8 | L156: 112.47
A157: =A139 -> 2 | B157: =B139 -> 3 | C157: Итого за день: | F157: =F146+F156 -> 1550 | G157: =G146+G156 -> 72.69 | H157: 60.2 | I157: 178.4 | J157: 1547.5 | L157: 268.62
A158: 2 | B158: 4 | C158: Завтрак | D158: гор.блюдо | E158: Запеканка из творога | F158: 200 | G158: 39.55 | H158: 14.23 | I158: 28.86 | J158: 401.7 | K158: 54-1т | L158: 91.23
E159: Молоко сгущенное с сахаром | F159: 40 | G159: 2.88 | H159: 3.4 | I159: 22.2 | J159: 130.9 | K159: Пром. | L159: 13.68
D160: гор.напиток | E160: Чай витаминизированный | F160: 200 | G160: 0 | H160: 0 | I160: 10 | J160: 39 | K160: ТК №282,11 | L160: 5.45
D161: хлеб | E161: Хлеб пшеничный с сыром твердых сортов в нарезке,хлеб ржаной | F161: 110 | G161: 10.04 | H161: 5.24 | I161: 39.54 | J161: 245.5 | K161: 54-1з-Пром. | L161: 8.04
D165: итого | F165: =SUM(F158:F164) -> 550 | G165: =SUM(G158:G164) -> 52.47 | H165: 22.87 | I165: 100.6 | J165: 817.1 | L165: 118.4
A166: =A158 -> 2 | B166: =B158 -> 4 | C166: Обед | D166: закуска | E166: Салат с картофелем с морковью и зеным горошком | F166: 100 | G166: 2.8 | H166: 7.15 | I166: 10.42 | J166: 117.1 | K166: 54-7з | L166: 13.67
D167: 1 блюдо | E167: Суп картофельный с макароными изделиями | F167: 250 | G167: 5.98 | H167: 2.71 | I167: 19.42 | J167: 126 | K167: 54-26 | L167: 19.51
D168: 2 блюдо | E168: Котлета из говядины | F168: 100 | G168: 18.25 | H168: 17.4 | I168: 16.43 | J168: 295.2 | K168: 54-29м | L168: 74.42
D169: гарнир | E169: Рагу из овощей | F169: 200 | G169: 3.82 | H169: 9.99 | I169: 18.17 | J169: 177.9 | K169: 54-4г-3соус | L169: 29.82
D170: напиток | E170: Чай с лимоном | F170: 200 | G170: 0.25 | H170: 0.05 | I170: 6.61 | J170: 27.9 | K170: 54-3н | L170: 3.16
D171: хлеб бел. | E171: Хлеб пшеничный | F171: 60 | G171: 4.56 | H171: 0.48 | I171: 29.52 | J171: 140.6 | K171: Пром | L171: 4.32
D172: хлеб черн. | E172: Хлеб ржаной | F172: 45 | G172: 3.4 | H172: 0.4 | I172: 22.1 | J172: 105.5 | K172: Пром | L172: 3.24
D173: фрукты
D175: итого | F175: =SUM(F166:F174) -> 955 | G175: =SUM(G166:G174) -> 39.06 | H175: 38.18 | I175: 122.67 | J175: 990.2 | L175: 148.14
A176: =A158 -> 2 | B176: =B158 -> 4 | C176: Итого за день: | F176: =F165+F175 -> 1505 | G176: =G165+G175 -> 91.53 | H176: 61.05 | I176: 223.27 | J176: 1807.3 | L176: 266.54
A177: 2 | B177: 5 | C177: Завтрак | D177: гор.блюдо | E177: Фрикадельки из говядины | F177: 100 | G177: 13.68 | H177: 12.16 | I177: 6.76 | J177: 191.2 | K177: 54-29м | L177: 63.74
E178: Картофельное пюре,соус красный основной | F178: 200 | G178: 4.35 | H178: 6.85 | I178: 25.57 | J178: 181.46 | K178: 54-11г-3соус | L178: 30.87
D179: гор.напиток | E179: Чай с сахаром | F179: 200 | G179: 0.2 | H179: 0 | I179: 6.4 | J179: 26.8 | K179: 54-2гн | L179: 1.8
D180: хлеб | E180: Хлеб пшеничный,хлеб ржаной | F180: 90 | G180: 6.54 | H180: 0.84 | I180: 39.54 | J180: 191.8 | K180: Пром | L180: 6.48
D181: фрукты
D182: булочное
D184: итого | F184: =SUM(F177:F183) -> 590 | G184: =SUM(G177:G183) -> 24.77 | H184: 19.85 | I184: 78.27 | J184: 591.26 | K184: 0 | L184: 102.89
A185: =A177 -> 2 | B185: =B177 -> 5 | C185: Обед | D185: закуска | E185: Салат из белокачанной капусты | F185: 100 | G185: 2.52 | H185: 10.15 | I185: 10.39 | J185: 143 | K185: 54-7з | L185: 13.74
D186: 1 блюдо | E186: Суп овощной | F186: 250 | G186: 1.76 | H186: 2.44 | I186: 10.13 | J186: 69.5 | K186: 54-26с | L186: 10.06
D187: 2 блюдо | E187: Курица тушенная с морковью | F187: 100 | G187: 16.95 | H187: 6.94 | I187: 5.34 | J187: 151.6 | K187: 54-5м | L187: 36.04
D188: гарнир | E188: Макароны отварные с овощами | F188: 180 | G188: 5.64 | H188: 7.44 | I188: 31.79 | J188: 216.5 | K188: 54-2 г | L188: 27.27
D189: напиток | E189: Компот из смеси сухофруктов | F189: 200 | G189: 0.38 | H189: 0 | I189: 19.82 | J189: 80.8 | K189: 54-1хн | L189: 5.83
D190: хлеб бел. | E190: Хлеб пшеничный | F190: 60 | G190: 4.56 | H190: 0.48 | I190: 29.52 | J190: 140.6 | K190: Пром | L190: 4.32
D191: хлеб черн. | E191: Хлеб ржаной | F191: 25 | G191: 1.65 | H191: 0.3 | I191: 8.35 | J191: 42.7 | K191: Пром | L191: 1.73
D194: итого | F194: =SUM(F185:F193) -> 915 | G194: =SUM(G185:G193) -> 33.46 | H194: 27.75 | I194: 115.34 | J194: 844.7 | K194: 0 | L194: 98.99
A195: =A177 -> 2 | B195: =B177 -> 5 | C195: Итого за день: | F195: =F184+F194 -> 1505 | G195: =G184+G194 -> 58.23 | H195: 47.6 | I195: 193.61 | J195: 1435.96 | K195: 0 | L195: 201.88
